[Event "Swietokrzyskie GM Chess-ch 2022"]
[Site "Zagnansk"]
[Date "2022.05.04"]
[Round "6.2"]
[White "Budisavljevic, GM Luka"]
[Black "Chatalbashev, GM Boris"]
[Result "1/2-1/2"]
[ECO "E94"]
[WhiteElo "2509"]
[BlackElo "2539"]
[Annotator "TA"]
[PlyCount "171"]
[EventDate "2022.04.29"]
[EventCountry "POL"]
[SourceTitle "playchess.com"]
[Source "ChessBase"]
[SourceQuality "1"]
[TimeControl "40/5400+30:1800+30"]

{[%evp 47,171,-22,-25,-23,-24,-63,-45,-37,-45,-49,-43,-42,-39,-82,-79,-92,-116,-101,-100,-133,-132,-149,-123,-166,-166,-180,-168,-168,-172,-172,-158,-170,-140,-148,-156,-144,-119,-119,-119,-159,-119,-113,-113,-343,-336,-345,-343,-341,-341,-285,-178,-154,-109,-181,-177,-178,0,-126,-33,-33,-39,-61,-39,-110,-90,-326,-326,-326,-326,-326,-325,-310,-262,-295,-262,-262,-258,-227,-167,-519,-466,-271,0,0,0,0,0,0,0,0,0,0,0,0,0,0,0,0,0,0,0,0,0,0,0,0,0,0,0,0,0,0,0,0,0,0,0,0,0,0,0,0,0,0,0,0]} 1. e4 {[%emt 0:00:02]} g6 {[%emt 0:00:09]} 2. d4 {[%emt 0:00:07]} Bg7 {[%emt 0:00:06]} 3. c4 {[%emt 0:00:07]} d6 {[%emt 0:00:09]} 4. Nc3 {[%emt 0:00:06]} Nf6 {[%emt 0:00:06]} 5. Nf3 {[%emt 0:00:09]} O-O {[%emt 0:00:07]} 6. Be2 {[%emt 0:00:04]} e5 {[%emt 0:00:22]} 7. O-O {[%emt 0:00:22]} Na6 {[%emt 0:00:04]} 8. Be3 {[%emt 0:00:18]} Qe7 {[%emt 0:00:45]} 9. Qc2 {[%emt 0:04:17]} exd4 {[%emt 0:01:12]} 10. Nxd4 {[%emt 0:00:05]} Nb4 {[%emt 0:06:54]} 11. Qd2 {[%emt 0:16:05]} Nxe4 {[%emt 0:06:28]} 12. Nxe4 {[%emt 0:00:18]} Qxe4 {[%emt 0:00:06]} 13. Bf3 {[%emt 0:13:04]} Qh4 {[%emt 0:01:44]} 14. Nb5 {[%emt 0:01:02]} Na6 {[%emt 0:01:04]} 15. Nxa7 {[%emt 0:01:37]} Be5 {[%emt 0:07:07]} 16. g3 {[%emt 0:02:00]} Qf6 {[%emt 0:01:21]} 17. Nxc8 {[%emt 0:08:27]} Qxf3 {[%emt 0:00:56]} 18. Ne7+ {[%emt 0:00:44]} Kh8 {[%emt 0:00:04]} 19. Nd5 {[%emt 0:01:03]} c6 {[%emt 0:04:50]} 20. Nc3 {[%emt 0:09:19]} Nc5 {[%emt 0:04:29]} 21. Bd4 {[%emt 0:05:52]} Ne6 {[%emt 0:10:29]} 22. Bxe5+ {[%emt 0:00:14]} dxe5 {[%emt 0:00:02]} 23. Rae1 {[%emt 0:05:39]} Nd4 {[%emt 0:06:40]} 24. Qe3 {[%emt 0:06:04]} f6 {[%emt 0:03:23]} 25. Rd1 {[%emt 0:02:06]} Rad8 {[%emt 0:07:59]} 26. c5 {[%emt 0:01:06]} g5 {[%emt 0:05:01]} 27. Qxf3 {[%emt 0:02:13]} Nxf3+ {[%emt 0:00:02]} 28. Kg2 {[%emt 0:00:01]} Nd2 $1 {[%emt 0:04:40]} 29. Rfe1 {[%emt 0:00:47]} Rd4 {[%emt 0:00:18]} 30. Rc1 {[%emt 0:11:08]} Rfd8 {[%emt 0:04:14]} 31. Nd1 {[%emt 0:05:40]} Kg7 {[%emt 0:18:39]} 32. Ne3 {[%emt 0:00:16]} Kg6 $1 {[%emt 0:00:02]} 33. Nf1 {[%emt 0:02:13]} g4 {[%emt 0:01:25]} 34. Re3 {[%emt 0:00:50]} R8d7 {[%emt 0:01:39]} 35. Re2 {[%emt 0:02:42]} Nf3 {[%emt 0:01:07]} 36. h3 {[%emt 0:00:30]} h5 {[%emt 0:00:14]} 37. Nh2 {[%emt 0:01:06]} Ng5 {[%emt 0:00:56]} 38. hxg4 {[%emt 0:01:13]} hxg4 {[%emt 0:00:02]} 39. Rc3 {[%emt 0:00:32]} Kf5 {[%emt 0:03:15]} 40. f3 {[%emt 0:00:00]} gxf3+ $1 {[%emt 0:00:00]} (40... Rd2 41. fxg4+ Ke6 42. Rce3 $17) 41. Nxf3 {[%emt 0:15:20]} Rd1 {[%emt 0:16:56]} 42. Nxg5 {[%emt 0:02:10]} Kxg5 {[%emt 0:01:08]} 43. Rf3 {[%emt 0:04:27]} Rc1 {[%emt 0:05:04]} 44. b4 {[%emt 0:00:01]} Rdd1 {[%emt 0:00:13]} 45. Rb3 $2 {[%emt 0:01:25]} (45. Rfe3 $17 {is a better defense.}) 45... Rg1+ $19 {[%emt 0:01:27]} 46. Kh2 {[%emt 0:01:15]} Rh1+ {[%emt 0:01:49]} 47. Kg2 {[%emt 0:00:01]} Rcg1+ {[%emt 0:00:24]} 48. Kf2 {[%emt 0:01:35]} Rf1+ {[%emt 0:02:17]} 49. Kg2 {[%emt 0:00:01]} Rb1 {[%emt 0:00:33]} 50. Rd3 {[%emt 0:03:20]} (50. Rbe3 $17) 50... Rhg1+ $19 {[%emt 0:01:19]} 51. Kh2 {[%emt 0:00:04]} Rh1+ {[%emt 0:00:05]} (51... Rgc1 $19 52. a3 f5) 52. Kg2 $17 {[%emt 0:00:01]} Rh7 {[%emt 0:00:48]} ({Better is} 52... Kg4 $17 {White must now prevent ...Rhg1+.} 53. a3 Rbg1+ 54. Kf2 Ra1) 53. a3 $15 {[%emt 0:00:10]} Rbh1 {[%emt 0:01:23]} 54. Kf3 {[%emt 0:00:42]} Kf5 {[%emt 0:00:48]} 55. Rd6 {[%emt 0:00:57]} (55. Rd8 $15) 55... Ra1 $1 $17 {[%emt 0:00:49]} 56. Re3 $2 {[%emt 0:05:11] [#]} (56. Kg2 $17) 56... Rh2 $1 $19 {[%emt 0:00:38]} 57. g4+ {[%emt 0:00:51]} Kg5 {[%emt 0:00:01]} 58. Rd7 {[%emt 0:01:49]} Rh3+ {[%emt 0:02:01]} 59. Ke4 {[%emt 0:00:01]} Rxe3+ {[%emt 0:00:25]} ({Not} 59... Rxa3 60. Rg7+ Kh6 61. Rxa3 Rxa3 62. Rxb7 $11) 60. Kxe3 {[%emt 0:00:01]} Kxg4 {[%emt 0:00:51]} ({Weaker is} 60... Rxa3+ 61. Ke4 $11) 61. Rxb7 {[%emt 0:00:57] [#]} f5 $1 {[%emt 0:01:33]} ({Worse is} 61... Rxa3+ 62. Ke4 $11) 62. Rg7+ {[%emt 0:00:42]} Kh5 {[%emt 0:00:01]} 63. Rh7+ $2 {[%emt 0:00:38]} (63. Ra7) 63... Kg5 $19 {[%emt 0:00:25]} 64. Rg7+ {[%emt 0:00:01]} Kh4 $2 {[%emt 0:00:59]} (64... Kf6 $19 65. Rc7 (65. Ra7 $2 f4+ 66. Kf3 Kf5 $19) 65... Rxa3+ 66. Kf2 Ra6) 65. Rh7+ $1 $11 {[%emt 0:00:46]} Kg3 {[%emt 0:00:02]} 66. Rg7+ {[%emt 0:00:02]} Kh2 {[%emt 0:00:09]} 67. Rg5 {[%emt 0:01:14]} Rxa3+ {[%emt 0:00:11]} 68. Kf2 {[%emt 0:00:08]} Ra2+ {[%emt 0:00:17]} 69. Kf1 {[%emt 0:00:17]} f4 {[%emt 0:00:58]} 70. Rxe5 {[%emt 0:00:05]} Kg3 {[%emt 0:00:05]} 71. Rf5 {[%emt 0:01:40]} Rb2 {[%emt 0:02:17]} 72. Rf6 {[%emt 0:00:30]} Rxb4 {[%emt 0:00:09]} 73. Rxc6 {[%emt 0:00:16]} Rb1+ {[%emt 0:00:45]} 74. Ke2 {[%emt 0:00:01]} f3+ {[%emt 0:00:07]} 75. Ke3 {[%emt 0:00:48]} Re1+ {[%emt 0:00:23]} 76. Kd4 {[%emt 0:00:16]} f2 {[%emt 0:00:24]} 77. Rg6+ {[%emt 0:00:19]} Kh4 {[%emt 0:00:32]} (77... Kf3 $5 78. Rf6+ Kg3 $11) 78. Rf6 {[%emt 0:00:03]} f1=Q {[%emt 0:00:11]} 79. Rxf1 {[%emt 0:00:02]} Rxf1 {[%emt 0:00:08]} 80. c6 $1 {[%emt 0:00:18]} Kg5 {[%emt 0:01:01]} 81. Ke5 {[%emt 0:00:20]} Rf6 {[%emt 0:02:30]} 82. Kd5 {[%emt 0:00:15]} Rf8 {[%emt 0:00:08]} 83. c7 {[%emt 0:00:12]} Kf6 {[%emt 0:00:03]} 84. Kd6 {[%emt 0:00:04]} Rh8 {[%emt 0:00:33]} 85. Kd7 {[%emt 0:00:08]} Rh7+ {[%emt 0:00:06]} 86. Kd6 {[%emt 0:00:09]} 1/2-1/2

[Event "Swietokrzyskie GM Chess-ch 2022"]
[Site "Zagnansk"]
[Date "2022.05.04"]
[Round "6.3"]
[White "Mikrut, IM Dariusz"]
[Black "Tazbir, GM Marcin"]
[Result "1/2-1/2"]
[ECO "C42"]
[WhiteElo "2361"]
[BlackElo "2506"]
[Annotator "TA"]
[PlyCount "41"]
[EventDate "2022.04.29"]
[EventCountry "POL"]
[SourceTitle "playchess.com"]
[Source "ChessBase"]
[SourceQuality "1"]
[TimeControl "40/5400+30:1800+30"]

{[%evp 22,41,0,0,0,0,-1,0,5,0,9,2,13,0,11,0,0,0,0,-4,0,-21]} 1. e4 {[%emt 0:00:02]} e5 {[%emt 0:00:15]} 2. Nf3 {[%emt 0:00:13]} Nf6 {[%emt 0:00:46]} 3. Nxe5 {[%emt 0:00:19]} d6 {[%emt 0:00:06]} 4. Nf3 {[%emt 0:00:06]} Nxe4 {[%emt 0:00:04]} 5. Qe2 {[%emt 0:02:42]} Qe7 {[%emt 0:00:23]} 6. d3 {[%emt 0:00:07]} Nf6 {[%emt 0:00:41]} 7. Bg5 {[%emt 0:02:36]} Qxe2+ {[%emt 0:02:58]} 8. Bxe2 {[%emt 0:00:16]} Be7 {[%emt 0:00:04]} 9. Nc3 {[%emt 0:00:56]} c6 {[%emt 0:03:33]} 10. O-O-O {[%emt 0:03:37]} Na6 {[%emt 0:05:40]} 11. Ne4 {[%emt 0:03:43]} Nxe4 {[%emt 0:02:27]} 12. dxe4 {[%emt 0:00:09] The position is equal.} Nc5 {[%emt 0:03:10] C42: Petroff Defence: 3 Nxe5 and unusual White 3rd moves.} 13. Bxe7 {[%emt 0:04:22]} Kxe7 {[%emt 0:00:30]} 14. Rhe1 {[%emt 0:01:05]} f6 {[%emt 0:02:38]} 15. Nd4 {[%emt 0:01:20]} g6 {[%emt 0:01:08]} 16. Bf1 {[%emt 0:00:54]} Re8 {[%emt 0:02:51]} 17. f3 {[%emt 0:01:24] [#]} Kd8 $146 {[%emt 0:03:58]} ({Predecessor:} 17... Bd7 18. Kb1 Ne6 19. Nxe6 Bxe6 20. Rd4 b6 21. g4 a5 22. h4 Rad8 {½-½ (44) Novikov,M (2503)-Simantsev,M (2541) Donskoj 2010}) 18. Nb3 {[%emt 0:03:11]} Nxb3+ {[%emt 0:00:16]} 19. axb3 {[%emt 0:00:07]} Kc7 {[%emt 0:00:04]} 20. Bd3 {[%emt 0:00:49]} Bd7 {[%emt 0:01:19]} 21. Kd2 {[%emt 0:00:38] Not much happened in this game.  Weighted Error Value: White=0.04 (flawless) /Black=0.05 (flawless)} 1/2-1/2

[Event "Swietokrzyskie GM Chess-ch 2022"]
[Site "Zagnansk"]
[Date "2022.05.04"]
[Round "6.4"]
[White "Pacan-Milej, FM Kosma"]
[Black "Samunenkov, FM Ihor"]
[Result "1/2-1/2"]
[ECO "E15"]
[WhiteElo "2404"]
[BlackElo "2372"]
[Annotator "TA"]
[PlyCount "48"]
[EventDate "2022.04.29"]
[EventCountry "POL"]
[SourceTitle "playchess.com"]
[Source "ChessBase"]
[SourceQuality "1"]
[TimeControl "40/5400+30:1800+30"]

{[%evp 21,48,0,0,-8,0,-9,0,0,0,0,0,0,0,0,5,7,5,-6,0,-19,0,0,0,0,0,0,0,0,0]} 1. d4 {[%emt 0:00:03]} Nf6 {[%emt 0:00:10]} 2. c4 {[%emt 0:00:08]} e6 {[%emt 0:00:07]} 3. Nf3 {[%emt 0:00:10]} b6 {[%emt 0:00:09]} 4. g3 {[%emt 0:00:20]} c6 {[%emt 0:00:11]} 5. Bg2 {[%emt 0:00:15]} Be7 {[%emt 0:00:22]} 6. O-O {[%emt 0:00:50]} O-O {[%emt 0:00:08]} 7. Qc2 {[%emt 0:01:39]} d5 {[%emt 0:00:12]} 8. Bg5 {[%emt 0:11:20]} Nbd7 {[%emt 0:07:58]} 9. Nbd2 {[%emt 0:03:06]} Bb7 {[%emt 0:01:27]} 10. Rfd1 {[%emt 0:04:54]} h6 {[%emt 0:07:11]} 11. Bxf6 {[%emt 0:02:08]} Nxf6 {[%emt 0:01:54] The position is equal.} 12. Rac1 {[%emt 0:18:20] E11: Bogo-Indian.} Rc8 {[%emt 0:06:01] [#]} 13. Qa4 $146 {[%emt 0:08:04]} ({Predecessor:} 13. e4 Re8 14. a3 c5 15. cxd5 exd5 16. e5 Nd7 17. Bh3 Bf8 18. Qf5 {½-½ (47) Olafsson,H (2473)-Delchev,A (2577) Istanbul 2003}) 13... a6 {[%emt 0:09:42]} 14. Nb3 {[%emt 0:08:22]} dxc4 {[%emt 0:08:02]} 15. Qxc4 {[%emt 0:00:23]} Qc7 {[%emt 0:01:26]} 16. Ne5 {[%emt 0:19:14][%cal Re5c6]} c5 {[%emt 0:02:55]} 17. Bxb7 {[%emt 0:02:27]} Qxb7 {[%emt 0:00:17]} 18. dxc5 {[%emt 0:02:30]} Bxc5 {[%emt 0:00:34]} 19. Qf4 {[%emt 0:01:10] Active counter play!} Be7 {[%emt 0:08:42]} 20. Nd3 {[%emt 0:01:49]} Rxc1 {[%emt 0:09:53]} 21. Rxc1 {[%emt 0:00:11]} Rc8 {[%emt 0:02:49] Prevents Rc7.} 22. Rxc8+ {[%emt 0:04:24]} Qxc8 {[%emt 0:00:05]} 23. Qc1 {[%emt 0:00:56]} Qxc1+ {[%emt 0:07:20]} 24. Nbxc1 {[%emt 0:00:05]} Kf8 {[%emt 0:01:16] An even fight not without its subleties.  Weighted Error Value: White=0.03 (flawless) /Black=0.04 (flawless)} 1/2-1/2

[Event "Swietokrzyskie GM Chess-ch 2022"]
[Site "Zagnansk"]
[Date "2022.05.04"]
[Round "6.5"]
[White "Fus, FM Jakub"]
[Black "Stoyanov, IM Tsvetan"]
[Result "1-0"]
[ECO "C88"]
[WhiteElo "2377"]
[BlackElo "2424"]
[Annotator "TA"]
[PlyCount "147"]
[EventDate "2022.04.29"]
[EventCountry "POL"]
[SourceTitle "playchess.com"]
[Source "ChessBase"]
[SourceQuality "1"]
[TimeControl "40/5400+30:1800+30"]

{[%evp 20,147,6,1,30,16,40,33,25,39,39,37,30,14,18,16,17,23,20,19,14,17,22,14,16,7,7,12,12,16,17,0,16,0,0,0,22,18,17,20,17,26,28,17,129,129,135,133,191,86,91,68,114,106,122,0,127,108,168,174,168,154,161,150,250,249,250,242,241,229,229,160,133,40,40,40,40,40,1365,1271,1056,726,1084,1007,1176,667,6502,2570,1730,725,4220,3688,2238,8759,2046,3999,2212,2181,1366,1208,12831,12827,12833,12833,12833,12834,12833,1288,12836,12836,12836,12836,12847,12847,12848,12843,12844,12844,12845,12845,12845,0,12848,12848,12849,12849,29997,29998,29998,29999]} 1. e4 {[%emt 0:00:06]} e5 {[%emt 0:00:32]} 2. Nf3 {[%emt 0:00:19]} Nc6 {[%emt 0:00:12]} 3. Bb5 {[%emt 0:00:23]} a6 {[%emt 0:00:15]} 4. Ba4 {[%emt 0:00:25]} Nf6 {[%emt 0:00:28]} 5. O-O {[%emt 0:00:56]} Be7 {[%emt 0:01:25]} 6. Re1 {[%emt 0:05:07]} b5 {[%emt 0:02:07]} 7. Bb3 {[%emt 0:00:07]} O-O {[%emt 0:07:27]} 8. a4 {[%emt 0:01:40]} Rb8 {[%emt 0:17:41]} 9. axb5 {[%emt 0:00:26]} axb5 {[%emt 0:00:05]} 10. Nc3 {[%emt 0:03:15]} d6 {[%emt 0:02:26]} 11. h3 {[%emt 0:02:44]} Be6 {[%emt 0:14:58] C88: Closed Ruy Lopez: Anti-Marshall Systems.} 12. Nd5 {[%emt 0:03:48]} Qd7 {[%emt 0:01:17] [#]} 13. d3 $146 {[%emt 0:05:00]} ({Predecessor:} 13. c3 h6 14. d4 exd4 15. Nxe7+ Qxe7 16. Nxd4 Nxd4 17. cxd4 Bxb3 18. Qxb3 c5 19. Bf4 {1-0 (54) Yelken,M (2097)-Demir,H (1900) Kemer 2014}) 13... Bxd5 {[%emt 0:11:36] White is slightly better.} 14. exd5 {[%emt 0:12:55]} ({Reject} 14. Bxd5 Nxd5 15. exd5 Nb4 $15) 14... Nb4 {[%emt 0:01:26]} 15. d4 {[%emt 0:02:38]} e4 {[%emt 0:00:10]} 16. Nd2 {[%emt 0:04:48]} Nbxd5 {[%emt 0:04:54]} 17. Nxe4 {[%emt 0:00:41]} Nxe4 {[%emt 0:01:08]} 18. Bxd5 {[%emt 0:00:42]} Nf6 {[%emt 0:00:08]} 19. Bf3 {[%emt 0:01:38]} d5 {[%emt 0:02:30]} 20. Bf4 {[%emt 0:01:48]} Ra8 {[%emt 0:02:02] Against Ra7} 21. Qd2 {[%emt 0:02:52]} c6 {[%emt 0:08:46]} 22. Be5 {[%emt 0:02:48]} Rxa1 {[%emt 0:03:04]} 23. Rxa1 {[%emt 0:00:05]} Ne4 {[%emt 0:00:11]} 24. Bxe4 {[%emt 0:10:20]} dxe4 {[%emt 0:00:01]} 25. Qc3 {[%emt 0:00:24][%cal Od4d5]} Rc8 {[%emt 0:08:45]} 26. Ra6 {[%emt 0:05:30]} f6 {[%emt 0:02:58]} 27. Bf4 {[%emt 0:00:06]} Qd5 {[%emt 0:00:50]} 28. Ra7 {[%emt 0:11:08]} Bf8 {[%emt 0:00:07]} 29. Be3 {[%emt 0:00:41]} Bd6 {[%emt 0:02:58]} 30. Qa5 {[%emt 0:01:21]} f5 {[%emt 0:02:40]} 31. Qa6 {[%emt 0:00:12]} Rb8 {[%emt 0:00:42]} (31... Rf8 $11) 32. g3 $16 {[%emt 0:02:09]} f4 {[%emt 0:01:01]} 33. gxf4 {[%emt 0:00:45]} h6 {[%emt 0:01:25]} (33... Re8 $16 34. Qa2 (34. Qb7 Bf8 $16) 34... Qxa2 35. Rxa2 Kf7) 34. Ra8 {[%emt 0:05:23]} (34. Rd7 $18 {is more deadly.}) 34... Rxa8 {[%emt 0:00:13]} 35. Qxa8+ {[%emt 0:00:04]} Kh7 {[%emt 0:00:09]} (35... Kf7 $14) 36. Qe8 {[%emt 0:00:12]} b4 {[%emt 0:01:14]} 37. c4 {[%emt 0:08:02]} ({White should try} 37. Qd7 $16) 37... bxc3 {[%emt 0:00:25]} (37... Qf5 $1 $11) 38. bxc3 {[%emt 0:00:03]} Qf5 {[%emt 0:00:37]} (38... Ba3 $16 39. Bd2 Bb2) 39. Qxc6 $18 {[%emt 0:02:52]} Bxf4 {[%emt 0:00:01]} 40. Bxf4 {[%emt 0:00:00]} Qxf4 {[%emt 0:00:00][%mdl 4096] Endgame KQ-KQ} 41. Qe6 {[%emt 0:16:22]} h5 {[%emt 0:27:43]} (41... Qc1+ $16 {was necessary.} 42. Kg2 Qg5+ 43. Qg4 Qd5) 42. Qe7 {[%emt 0:11:01]} Qc1+ {[%emt 0:03:02]} ({Less strong is} 42... Qf3 43. Qe5) 43. Kg2 {[%emt 0:00:10]} Qf4 {[%emt 0:00:04] [#]} 44. Qe5 $1 {[%emt 0:01:56]} Qf3+ {[%emt 0:00:07]} 45. Kg1 {[%emt 0:00:13]} h4 {[%emt 0:00:44]} 46. d5 {[%emt 0:00:53]} (46. Qe7 $16) 46... Qd1+ $1 $14 {[%emt 0:01:40]} 47. Kh2 {[%emt 0:00:12]} Qf3 {[%emt 0:00:52]} 48. Qd4 {[%emt 0:00:30] [#] Hoping for d6.} Qf4+ {[%emt 0:00:48][%mdl 8192] White stays focused until the end.} (48... g5 $14) 49. Kg1 $18 {[%emt 0:00:43] aiming for d6.} Qc1+ {[%emt 0:00:18]} 50. Kg2 {[%emt 0:00:05]} Qg5+ {[%emt 0:00:02]} 51. Kf1 {[%emt 0:00:08]} Qf5 {[%emt 0:01:09]} 52. Ke1 {[%emt 0:00:06] d6 is the strong threat.} Qxh3 {[%emt 0:00:33]} 53. Qxe4+ {[%emt 0:00:05]} Kh8 {[%emt 0:00:31]} 54. c4 {[%emt 0:02:15]} (54. Qd4 $142 Kg8 55. c4) 54... Qh2 {[%emt 0:00:32]} 55. c5 {[%emt 0:00:52] Strongly threatening d6.} h3 {[%emt 0:00:14]} 56. d6 {[%emt 0:04:14]} Qg1+ {[%emt 0:00:44]} 57. Ke2 {[%emt 0:00:04]} Qg5 {[%emt 0:00:31] Against Qh4+} 58. d7 {[%emt 0:01:07]} h2 {[%emt 0:00:10]} 59. Kd3 {[%emt 0:02:59]} g6 {[%emt 0:00:48]} 60. Kc4 {[%emt 0:00:37]} Kh7 {[%emt 0:00:28]} 61. Kb5 {[%emt 0:00:21]} Qd8 {[%emt 0:00:34]} 62. c6 {[%emt 0:00:23]} Qb8+ {[%emt 0:00:23]} 63. Kc4 {[%emt 0:00:21]} (63. Kc5 $142 Qf8+ 64. Kb5 Qb8+ 65. Kc4 Qg8+ 66. Kd4 Qg7+ 67. Kd5) 63... Qd6 {[%emt 0:00:34]} 64. Qh4+ {[%emt 0:00:58]} Kg7 {[%emt 0:00:01]} 65. d8=Q {[%emt 0:00:05]} Qxc6+ {[%emt 0:01:00]} 66. Kb4 {[%emt 0:00:50] White wants to mate with Qhh8+.} Qb7+ {[%emt 0:00:31]} 67. Ka5 {[%emt 0:00:10]} Qa7+ {[%emt 0:00:24]} 68. Kb5 {[%emt 0:00:02] Qdh8+ would kill now.} Qb7+ {[%emt 0:00:06]} 69. Kc5 {[%emt 0:00:06]} Qa7+ {[%emt 0:00:58]} 70. Kb4 {[%emt 0:01:11]} Qb7+ {[%emt 0:00:10]} 71. Kc3 {[%emt 0:00:06] White threatens Qdf6+ and mate.} Qf3+ {[%emt 0:00:29]} 72. Kd2 {[%emt 0:00:20] Intending Qhh8+ and mate.} h1=Q {[%emt 0:00:37]} 73. Qhe7+ {[%emt 0:00:16]} Qf7 {[%emt 0:00:29]} 74. Qdf8+ {[%emt 0:00:03] Weighted Error Value: White=0.27 (precise) /Black=0.22 (precise)} 1-0

[Event "Swietokrzyskie GM Chess-ch 2022"]
[Site "Zagnansk"]
[Date "2022.05.04"]
[Round "7.1"]
[White "Stoyanov, IM Tsvetan"]
[Black "Kowalski, IM Igor"]
[Result "1-0"]
[ECO "A28"]
[WhiteElo "2424"]
[BlackElo "2370"]
[Annotator "TA"]
[PlyCount "79"]
[EventDate "2022.04.29"]
[EventCountry "POL"]
[SourceTitle "playchess.com"]
[Source "ChessBase"]
[SourceQuality "1"]
[TimeControl "40/5400+30:1800+30"]

{[%evp 9,79,1,4,0,14,12,16,13,16,12,30,25,53,35,52,50,62,49,45,67,72,57,66,55,72,61,96,79,77,54,81,72,65,31,29,46,40,27,43,32,45,0,2,0,0,8,17,0,0,-14,61,64,66,27,24,25,164,169,171,180,156,172,171,158,182,177,204,124,125,129,556,530]} 1. c4 {[%emt 0:00:10]} Nf6 {[%emt 0:00:20]} 2. Nc3 {[%emt 0:00:24]} e5 {[%emt 0:00:22]} 3. Nf3 {[%emt 0:00:38]} Nc6 {[%emt 0:00:07]} 4. e4 {[%emt 0:00:58]} Bb4 {[%emt 0:00:41]} 5. d3 {[%emt 0:00:39]} d6 {[%emt 0:00:06]} 6. a3 {[%emt 0:04:36] A28: English Opening: Four Knights Variation.} Ba5 {[%emt 0:00:14]} 7. b4 {[%emt 0:05:43]} Bb6 {[%emt 0:00:32]} 8. Be3 {[%emt 0:00:55] The position is equal.} O-O {[%emt 0:01:57]} 9. Be2 {[%emt 0:09:07] [#]} Ne8 $146 {[%emt 0:09:25]} ({Predecessor:} 9... Nd4 10. Bxd4 exd4 11. Nb1 c5 12. O-O a5 13. bxc5 dxc5 14. a4 Bc7 15. Na3 Nd7 {0-1 (40) Abdusattorov,N (2651)-Caruana,F (2792) Chess.com INT 2022}) 10. O-O {[%emt 0:09:04]} f5 {[%emt 0:01:12]} 11. exf5 {[%emt 0:05:01]} (11. c5 {feels hotter.} dxc5 12. bxc5 Ba5 13. exf5 Bxf5 14. Ne4) 11... Bxf5 {[%emt 0:00:07]} 12. d4 {[%emt 0:08:46]} exd4 {[%emt 0:09:49]} 13. Nxd4 {[%emt 0:00:57]} Bxd4 {[%emt 0:00:22]} 14. Bxd4 {[%emt 0:00:05]} Qh4 {[%emt 0:00:13]} 15. f4 {[%emt 0:03:33]} (15. Be3 {with more complications.} Nf6 16. Nd5 Nxd5 17. Qxd5+ Kh8 18. c5) 15... Nxd4 {[%emt 0:12:44]} 16. Qxd4 {[%emt 0:02:47] And now Qd5+ would win.} c6 {[%emt 0:00:10] Inhibits Qd5+.} 17. Rad1 {[%emt 0:09:33]} Bg6 {[%emt 0:07:52]} 18. Bf3 {[%emt 0:05:20]} Qf6 {[%emt 0:04:24]} 19. g3 {[%emt 0:11:35]} a6 {[%emt 0:10:02]} 20. Rfe1 {[%emt 0:01:14]} Rd8 {[%emt 0:01:54]} 21. b5 {[%emt 0:09:28] 0x0.002471b8e108dp-1022s more active pieces. The black rooks are badly placed.} axb5 {[%emt 0:06:22]} 22. cxb5 {[%emt 0:00:01]} d5 {[%emt 0:00:13]} 23. Qc5 {[%emt 0:03:51][%cal Rf3d5]} Nc7 {[%emt 0:04:03]} 24. bxc6 {[%emt 0:01:15]} bxc6 {[%emt 0:00:21]} 25. Re5 {[%emt 0:00:43]} (25. Ne2 $5 {[%cal Re2d4]}) 25... Qd6 {[%emt 0:05:51]} 26. Qxd6 {[%emt 0:00:58]} (26. Na4 {looks sharper.} Nb5 27. Ra1 Ra8 28. Bxd5+ cxd5 29. Qxb5 Rfc8 30. Nb6) 26... Rxd6 {[%emt 0:00:32]} 27. a4 {[%emt 0:01:14][%cal Ba3a4,Ba4a5,Ba5a6][%mdl 32]} Re6 {[%emt 0:05:45]} 28. Rxe6 {[%emt 0:01:09]} Nxe6 {[%emt 0:00:08]} 29. a5 {[%emt 0:03:35][%cal Oc3d5]} Nc5 {[%emt 0:00:34]} ({Better is} 29... Ra8 $11) 30. Ne2 $1 $14 {[%emt 0:00:26]} Nb3 {[%emt 0:03:49]} 31. Nd4 {[%emt 0:00:17] Against Bc2} Nxd4 {[%emt 0:01:21]} 32. Rxd4 $11 {[%emt 0:00:01][%mdl 4096] Endgame KRB-KRB} Bf7 {[%emt 0:00:05]} (32... Re8 $11 {and Black has nothing to worry.}) 33. Rb4 $18 {[%emt 0:02:15]} Ra8 {[%emt 0:09:06]} 34. a6 $1 {[%emt 0:00:01][%cal Oa6a7] [#] a7! is the strong threat.} Kf8 {[%emt 0:00:42]} 35. Rb6 {[%emt 0:00:13]} Be8 {[%emt 0:00:13]} 36. Kf2 {[%emt 0:00:47]} Bd7 {[%emt 0:02:08]} 37. Ke3 {[%emt 0:00:28] Threatens to win with Kd4.} Ke7 {[%emt 0:02:42]} 38. Kd4 {[%emt 0:00:27] [#] Strongly threatening Kc5.} Bc8 {[%emt 0:01:40]} 39. Rxc6 {[%emt 0:00:52]} Kd7 {[%emt 0:00:31][%mdl 8192]} (39... Bxa6 $16 {is a better chance.} 40. Bxd5 Ra7) 40. Rc5 {[%emt 0:00:00] Weighted Error Value: White=0.11 (very precise) /Black=0.38} 1-0